bitfinex/quotes_BTCUSD_20240623
["timestamp","ask_amount","ask_price","bid_price","bid_amount"]
[1719186960336,0.03090957,63348.0,63347.0,0.789302]
[1719186960600,0.1,63351.0,63349.0,0.315711]
[1719186960805,0.0311616,63350.0,63349.0,0.473566]
[1719186960930,0.0311616,63350.0,63349.0,0.157855]
[1719186961137,0.03124546,63350.0,63347.0,0.315721]
[1719186961587,0.1,63351.0,63348.0,0.157857]
[1719186961757,0.03124559,63350.0,63349.0,0.157855]
[1719186961958,0.16564559,63350.0,63349.0,0.157855]
[1719186962185,0.26564559,63350.0,63349.0,0.157855]
[1719186962386,0.13124559,63350.0,63345.0,0.31573]
[1719186962599,0.13124559,63349.0,63344.0,0.157867]
[1719186962810,0.0386548,63348.0,63344.0,0.157867]
[1719186963007,0.00780289,63348.0,63344.0,0.157867]
[1719186963227,0.00780289,63348.0,63335.0,0.315776]
[1719186963431,0.1344,63336.0,63331.0,0.157898]
[1719186963658,0.1344,63336.0,63332.0,0.157897]
[1719186964078,0.00779704,63335.0,63332.0,0.157897]
[1719186964293,0.1344,63336.0,63332.0,0.157897]
[1719186964644,0.1364,63336.0,63332.0,0.157897]
[1719186965045,0.00779704,63335.0,63333.0,0.157894]
[1719186965291,0.00879704,63335.0,63333.0,0.157894]
[1719186965474,0.00879704,63335.0,63332.0,0.012]
[1719186965475,0.00879704,63335.0,63332.0,0.169898]
[1719186965861,0.00779704,63334.0,63332.0,0.023]
[1719186966063,0.00779704,63334.0,63332.0,0.021377]
[1719186966281,0.00779704,63334.0,63332.0,0.033377]
[1719186966900,0.335791,63333.0,63332.0,0.021377]
[1719186967135,1.56265,63333.0,63332.0,0.014]
[1719186967333,1.63921283,63333.0,63332.0,0.014]
[1719186967588,0.157901,63331.0,63323.0,0.15792]
[1719186967728,0.04664546,63328.0,63323.0,0.15792]
[1719186968369,0.00876284,63327.0,63323.0,0.15792]
[1719186969133,0.00876284,63327.0,63321.0,0.34627936]
[1719186969134,0.04664546,63326.0,63321.0,0.03042936]
[1719186969323,0.00876284,63327.0,63321.0,0.03042936]
[1719186969324,0.0554083,63327.0,63321.0,0.34627936]
[1719186969539,0.04664546,63327.0,63321.0,0.50420236]
[1719186969876,0.25119492,63330.0,63326.0,0.00159373]
[1719186970082,0.25119492,63330.0,63327.0,0.00159373]
[1719186970202,0.157904,63330.0,63327.0,0.00159373]
[1719186970413,0.001,63328.0,63326.0,0.00159373]
[1719186970621,0.1344,63331.0,63326.0,0.00159373]
[1719186971044,0.001,63327.0,63326.0,0.00159373]
[1719186971233,0.002,63327.0,63326.0,0.00159373]
[1719186971430,0.002,63327.0,63326.0,0.00759373]
[1719186971746,0.001,63327.0,63326.0,0.00159373]
[1719186971950,0.001,63327.0,63326.0,0.62789385]
[1719186972267,0.09994536,63331.0,63327.0,0.00159373]
[1719186972467,0.09994536,63331.0,63329.0,0.00159373]
[1719186972669,0.03279682,63330.0,63329.0,0.00159373]
[1719186973264,0.09994536,63331.0,63329.0,0.00159373]
[1719186973536,0.0403242,63330.0,63326.0,0.16250573]
[1719186973741,0.03268299,63329.0,63327.0,0.00159373]
[1719186973913,0.03268299,63329.0,63326.0,0.160912]
[1719186973914,0.03268299,63329.0,63328.0,0.00159373]
[1719186974137,0.03268299,63329.0,63326.0,0.157912]
[1719186974138,0.03268299,63329.0,63327.0,0.00159373]
[1719186974339,0.03268299,63328.0,63327.0,0.00159373]
[1719186974978,0.00764121,63328.0,63327.0,0.00159373]
[1719186975307,0.03268299,63328.0,63327.0,0.00159373]
[1719186975511,0.00764121,63328.0,63327.0,0.00659373]
[1719186975923,0.0403242,63328.0,63327.0,0.01159373]
[1719186976122,0.0403242,63328.0,63327.0,0.01]
[1719186976371,0.04055265,63328.0,63327.0,0.01]
[1719186976567,0.04055265,63328.0,63327.0,0.005]
[1719186976773,0.04155265,63328.0,63327.0,0.00859373]
[1719186977183,0.04255265,63328.0,63327.0,0.48470373]
[1719186977363,0.0405039,63328.0,63327.0,0.48470373]
[1719186977530,0.04475826,63328.0,63327.0,0.48470373]
[1719186977733,0.51848226,63328.0,63327.0,0.013]
[1719186977956,1.16799826,63328.0,63327.0,0.013]
[1719186979230,1.11228682,63328.0,63327.0,0.013]
[1719186979400,1.14764335,63328.0,63327.0,0.013]
[1719186979775,1.07228682,63328.0,63327.0,0.013]
[1719186980018,1.10760348,63328.0,63327.0,0.013]
[1719186980362,1.11760348,63328.0,63327.0,0.013]
[1719186980557,1.10760348,63328.0,63327.0,0.013]
[1719186982144,0.97320348,63328.0,63327.0,0.013]
[1719186982358,1.10763642,63328.0,63327.0,0.013]
[1719186982559,0.7918779,63328.0,63327.0,0.013]
[1719186982725,0.7708019,63328.0,63327.0,0.013]
[1719186983129,0.81739592,63328.0,63327.0,0.013]
[1719186983328,1.0866179,63328.0,63327.0,0.013]
[1719186983547,0.7708019,63328.0,63327.0,0.013]
[1719186983721,0.1626779,63328.0,63327.0,0.013]
[1719186983926,0.52058436,63328.0,63327.0,0.013]
[1719186984143,0.83640036,63328.0,63327.0,0.013]
[1719186984644,0.52058436,63328.0,63327.0,0.013]
[1719186984846,0.64023636,63328.0,63327.0,0.013]
[1719186985249,0.60482928,63328.0,63327.0,0.013]
[1719186985447,0.64026328,63328.0,63327.0,0.013]
[1719186986229,0.157914,63326.0,63322.0,0.00159373]
[1719186986429,0.04519897,63325.0,63322.0,0.00159373]
[1719186986551,0.035434,63324.0,63322.0,0.00159373]
[1719186986955,0.04519897,63323.0,63322.0,0.00159373]
[1719186987409,0.04480542,63323.0,63322.0,0.009]
[1719186987552,0.04480542,63323.0,63322.0,0.019]
[1719186987757,0.04480542,63323.0,63322.0,0.01]
[1719186988166,0.04680542,63323.0,63322.0,0.03659373]
[1719186988394,0.01176497,63323.0,63322.0,0.035]
[1719186989415,0.01176497,63323.0,63322.0,0.03659373]
[1719186989680,0.01176497,63323.0,63322.0,0.75626073]
[1719186989970,0.01176497,63323.0,63322.0,0.754667]
[1719186990311,0.01176497,63323.0,63322.0,1.070512]
[1719186990510,0.01176497,63323.0,63322.0,0.754667]
[1719186990745,0.01176497,63323.0,63322.0,1.375012]
[1719186991913,0.01176497,63323.0,63322.0,1.52757312]
[1719186992317,0.01137143,63323.0,63322.0,1.52757312]
[1719186993921,0.01137143,63323.0,63322.0,1.52916685]
[1719186994968,0.01137143,63323.0,63322.0,1.53916685]
[1719186995173,0.01137143,63323.0,63322.0,1.52916685]
[1719186996906,29.9054534,63322.0,63321.0,0.03136436]
[1719186997158,29.9054534,63322.0,63321.0,0.18928936]
[1719186997327,29.91510042,63322.0,63321.0,0.82098836]
[1719186997535,29.94047595,63322.0,63321.0,0.82098836]
[1719186997703,29.94047595,63322.0,63321.0,1.13683836]
[1719186997902,29.94044071,63322.0,63321.0,1.13683836]
[1719186998124,29.94144071,63322.0,63321.0,1.15083836]
[1719186998324,29.94244071,63322.0,63321.0,1.15683836]
[1719186999239,29.94249324,63322.0,63321.0,1.15683836]
[1719186999456,29.94249324,63322.0,63321.0,0.84098836]
[1719187000019,29.94249324,63322.0,63321.0,1.43128836]
[1719187000704,29.94249412,63322.0,63321.0,1.43128836]
[1719187000948,29.94249412,63322.0,63321.0,2.33554948]
[1719187001140,29.90710042,63322.0,63321.0,2.72514948]
[1719187001407,29.90710042,63322.0,63321.0,2.78840548]
[1719187002136,29.90610042,63322.0,63321.0,2.77440548]
[1719187002341,29.30620042,63322.0,63321.0,3.19025548]
[1719187002554,29.30620042,63322.0,63321.0,3.27025548]
[1719187002555,27.20640042,63322.0,63321.0,3.27025548]
[1719187002724,18.49220723,63322.0,63321.0,3.68610548]
[1719187002878,14.84260723,63322.0,63321.0,3.09580548]
[1719187003293,14.84160723,63322.0,63321.0,3.08980548]
[1719187003498,14.84360723,63322.0,63321.0,3.10380548]
[1719187004071,14.84260723,63322.0,63321.0,3.08980548]
[1719187004187,14.84460723,63322.0,63321.0,3.10380548]
[1719187004427,14.84460723,63322.0,63321.0,3.10440548]
[1719187004631,14.79275436,63322.0,63321.0,3.10440548]
[1719187004847,14.78975436,63322.0,63321.0,3.09040548]
[1719187005062,14.78975436,63322.0,63321.0,3.10440548]
[1719187005283,14.79075436,63322.0,63321.0,2.44970548]
[1719187006614,14.79075436,63322.0,63321.0,2.43570548]
[1719187006615,14.78975436,63322.0,63321.0,2.43570548]
[1719187006817,14.79075436,63322.0,63321.0,2.44570548]
[1719187007020,14.79175436,63322.0,63321.0,2.48270548]
[1719187007370,14.79175436,63322.0,63321.0,2.17870548]
[1719187007571,14.79175436,63322.0,63321.0,2.49270548]
[1719187007773,14.79075436,63322.0,63321.0,2.47270548]
[1719187007978,14.79175436,63322.0,63321.0,2.48270548]
[1719187008155,14.79175436,63322.0,63321.0,2.46870548]
[1719187008156,14.79075436,63322.0,63321.0,2.46870548]
[1719187008355,14.79075436,63322.0,63321.0,2.48270548]
[1719187008579,14.79175436,63322.0,63321.0,2.48270548]
[1719187010466,14.79175436,63322.0,63321.0,2.28270548]
[1719187011093,14.79175436,63322.0,63321.0,2.48270548]
[1719187012607,14.79175436,63322.0,63321.0,0.05536436]
[1719187012923,14.82747117,63322.0,63321.0,0.05536436]
[1719187013327,14.82647117,63322.0,63321.0,0.04536436]
[1719187013531,14.82647117,63322.0,63321.0,0.03136436]
[1719187013532,14.82547117,63322.0,63321.0,0.03136436]
[1719187013733,14.82547117,63322.0,63321.0,0.03236436]
[1719187014130,14.82747117,63322.0,63321.0,0.03236436]
[1719187014355,14.82747117,63322.0,63321.0,0.03136436]
[1719187014621,14.82547117,63322.0,63321.0,0.03136436]
[1719187014970,14.82747117,63322.0,63321.0,0.03136436]
[1719187015580,14.82839301,63322.0,63321.0,0.03136436]
[1719187015795,14.82924301,63322.0,63321.0,0.03136436]
[1719187015992,14.82900813,63322.0,63321.0,0.03136436]
[1719187016416,14.82700813,63322.0,63321.0,0.03136436]
[1719187016999,15.60508509,63322.0,63321.0,0.03136436]
[1719187017202,15.60708509,63322.0,63321.0,0.03136436]
[1719187018725,15.60704465,63322.0,63321.0,0.03136436]
[1719187019232,15.92288965,63322.0,63321.0,0.03136436]
[1719187019494,16.66524165,63322.0,63321.0,0.03136436]
[1719187019662,16.31488965,63322.0,63321.0,0.03136436]
[1719187019879,16.18048965,63322.0,63321.0,0.03136436]
[1719187020297,16.18048965,63322.0,63321.0,3.11066436]
[1719187020902,16.91442365,63322.0,63321.0,3.11066436]
[1719187021062,16.9142655,63322.0,63321.0,3.11066436]
[1719187021505,17.2201105,63322.0,63321.0,3.11066436]
[1719187021879,17.2301105,63322.0,63321.0,3.11066436]
[1719187022086,17.2401105,63322.0,63321.0,3.11066436]
[1719187022359,17.2461905,63322.0,63321.0,3.11066436]
[1719187022662,17.2441905,63322.0,63321.0,3.11066436]
[1719187022806,17.2511905,63322.0,63321.0,3.11066436]
[1719187023011,17.2311905,63322.0,63321.0,3.11066436]
[1719187023344,17.2561905,63322.0,63321.0,3.11066436]
[1719187023794,17.30279719,63322.0,63321.0,3.11066436]
[1719187024252,17.3025681,63322.0,63321.0,3.11066436]
[1719187024473,17.25597429,63322.0,63321.0,3.11066436]
[1719187024698,17.25597432,63322.0,63321.0,3.11066436]
[1719187025847,17.25544519,63322.0,63321.0,3.11066436]
[1719187026567,17.25934519,63322.0,63321.0,3.11066436]
[1719187027542,17.25898183,63322.0,63321.0,3.11066436]
[1719187028137,17.35898183,63322.0,63321.0,3.11066436]
[1719187028339,17.40555929,63322.0,63321.0,3.11066436]
[1719187028479,17.40555919,63322.0,63321.0,3.11066436]
[1719187029537,17.27115919,63322.0,63321.0,3.11066436]
[1719187029684,17.35898183,63322.0,63321.0,3.11066436]
[1719187029883,17.22458183,63322.0,63321.0,3.11066436]
[1719187030124,17.35898183,63322.0,63321.0,3.11066436]
[1719187030326,17.32388532,63322.0,63321.0,3.11066436]
[1719187030531,17.22414078,63322.0,63321.0,3.11066436]
[1719187030735,17.35854078,63322.0,63321.0,3.11066436]
[1719187033416,17.32388532,63322.0,63321.0,3.11066436]
[1719187033552,17.35858647,63322.0,63321.0,3.11066436]
[1719187033793,17.35858663,63322.0,63321.0,3.11066436]
[1719187034393,17.40514316,63322.0,63321.0,3.11066436]
[1719187034591,17.35858663,63322.0,63321.0,3.11066436]
[1719187035134,18.18889263,63322.0,63321.0,3.11066436]
[1719187036173,19.62060789,63322.0,63321.0,0.31526436]
[1719187036376,19.62060789,63322.0,63313.0,0.50212867]
[1719187036377,0.02,63314.0,63313.0,0.50212867]
[1719187036608,0.02,63314.0,63287.0,0.2482]
[1719187036609,0.78985,63303.0,63288.0,0.07764518]
[1719187036889,0.78985,63303.0,63281.0,0.5699]
[1719187036890,4.22508249,63303.0,63281.0,0.5699]
[1719187037131,4.78444064,63303.0,63282.0,0.158022]
[1719187037375,4.78444064,63303.0,63281.0,0.3217]
[1719187037376,4.93700176,63303.0,63281.0,0.3217]
[1719187037610,0.75029,63295.0,63279.0,0.25]
[1719187037870,3.17839526,63295.0,63279.0,0.25]
[1719187038103,4.4583173,63295.0,63279.0,0.25]
[1719187038529,1.14261,63291.0,63279.0,0.25]
[1719187038745,1.3737,63291.0,63290.0,0.6787752]
[1719187038995,3.94343377,63291.0,63290.0,0.53090642]
[1719187039233,3.47694087,63291.0,63290.0,0.53090642]
[1719187039476,3.47694087,63291.0,63290.0,0.43396986]
[1719187039477,3.85824203,63291.0,63290.0,0.43396986]
[1719187039717,3.77644974,63291.0,63290.0,0.43396986]
[1719187039963,4.18101744,63291.0,63290.0,0.43396986]
[1719187040195,4.22840973,63291.0,63290.0,0.43396986]
[1719187040463,4.24476339,63291.0,63290.0,0.43396986]
[1719187040713,4.25876339,63291.0,63290.0,0.43396986]
[1719187040946,4.3113711,63291.0,63290.0,0.39996986]
[1719187041227,4.25876339,63291.0,63290.0,0.39996986]
[1719187041486,3.64276339,63291.0,63290.0,0.39996986]
[1719187041741,3.56732184,63291.0,63290.0,0.39996986]
[1719187041993,3.78732184,63291.0,63290.0,0.39996986]
[1719187042295,3.67698019,63291.0,63290.0,0.39996986]
[1719187042540,3.58667357,63291.0,63290.0,0.39996986]
[1719187042769,3.7142421,63291.0,63290.0,0.39996986]
[1719187043266,3.5142421,63291.0,63290.0,0.39996986]
[1719187043738,2.36737796,63291.0,63290.0,0.39996986]
[1719187043970,1.85853796,63291.0,63290.0,0.39996986]
[1719187044467,0.17404893,63291.0,63290.0,0.39996986]
[1719187044744,0.03753393,63291.0,63290.0,0.39996986]
[1719187045215,0.03753393,63291.0,63290.0,0.55797186]
[1719187045453,0.03753393,63291.0,63290.0,1.18998186]
[1719187045454,0.02353393,63291.0,63290.0,1.18998186]
[1719187045717,0.00953393,63291.0,63290.0,0.87397686]
[1719187045976,1.16198258,63295.0,63292.0,0.157997]
[1719187046229,1.16198258,63295.0,63291.0,0.157999]
[1719187047162,1.16198258,63295.0,63290.0,0.71697386]
[1719187047395,1.16198258,63295.0,63290.0,0.40096986]
[1719187047626,1.31997258,63295.0,63290.0,0.39996986]
[1719187047895,0.00791876,63294.0,63290.0,0.39996986]
[1719187048134,0.1604729,63294.0,63290.0,0.39996986]
[1719187048378,0.157995,63293.0,63290.0,0.39996986]
[1719187048597,0.158,63291.0,63290.0,0.39996986]
[1719187049068,0.16591876,63291.0,63290.0,0.39996986]
[1719187049765,1.52987988,63291.0,63290.0,0.39996986]
[1719187049988,2.53251302,63291.0,63290.0,0.39996986]
[1719187050408,2.84851302,63291.0,63290.0,0.39996986]
[1719187050616,2.53251302,63291.0,63290.0,0.39996986]
[1719187051026,0.10791876,63291.0,63290.0,0.39996986]
[1719187051234,0.10791876,63291.0,63290.0,0.40196986]
[1719187051446,0.00791876,63291.0,63290.0,0.40196986]
[1719187051667,0.10791876,63291.0,63290.0,0.40196986]
[1719187051878,0.10790441,63291.0,63290.0,0.40196986]
[1719187052292,0.10790441,63291.0,63290.0,0.55997186]
[1719187052293,0.00790441,63291.0,63290.0,0.55997186]
[1719187052500,0.00790441,63291.0,63290.0,0.40196986]
[1719187052708,0.1,63294.0,63290.0,0.55587186]
[1719187052928,0.00790441,63291.0,63290.0,0.55587186]
[1719187053138,0.1,63294.0,63290.0,0.55587186]
[1719187053345,0.1,63294.0,63291.0,0.158]
[1719187053557,1.16198258,63295.0,63292.0,0.473992]
[1719187053558,0.00790441,63293.0,63292.0,0.473992]
[1719187053983,0.01,63306.0,63293.0,0.473985]
[1719187053984,0.006,63294.0,63293.0,0.473985]
[1719187054189,0.006,63294.0,63293.0,0.94253612]
[1719187054447,0.004,63294.0,63293.0,1.25852612]
[1719187054653,0.004,63294.0,63293.0,1.84182612]
[1719187055267,0.02,63311.0,63293.0,1.84182612]
[1719187055268,0.02,63311.0,63304.0,0.157967]
[1719187055401,0.22497653,63315.0,63302.0,0.315945]
[1719187055598,0.40120864,63314.0,63305.0,0.157964]
[1719187055843,0.00792254,63313.0,63304.0,0.157965]
[1719187056421,0.157947,63312.0,63303.0,0.157969]
[1719187056621,0.11,63311.0,63303.0,0.157969]
[1719187056824,0.00792254,63310.0,63307.0,0.157958]
[1719187057236,0.00792254,63310.0,63301.0,0.315948]
[1719187057451,0.00792254,63310.0,63309.0,0.780365]
[1719187057656,0.025,63313.0,63312.0,0.473842]
[1719187057876,0.025,63313.0,63309.0,0.5524]
[1719187058037,0.014,63313.0,63309.0,0.5524]
[1719187058240,0.014,63313.0,63310.0,0.157952]
[1719187058553,0.157928,63320.0,63311.0,0.15795]
[1719187058932,0.00799012,63319.0,63311.0,0.15795]
[1719187059930,0.006,63313.0,63311.0,0.15795]
[1719187060133,0.006,63313.0,63309.0,0.5524]
[1719187060340,0.315853,63321.0,63309.0,0.5524]
[1719187060579,0.00799012,63312.0,63309.0,0.710355]
[1719187060794,0.003,63313.0,63309.0,0.5524]
[1719187061010,0.003,63313.0,63309.0,0.710353]
[1719187061226,0.315862,63319.0,63309.0,0.5524]
[1719187061227,0.157935,63317.0,63309.0,0.5524]
[1719187061436,0.00799012,63312.0,63309.0,0.710354]
[1719187061642,0.329862,63319.0,63309.0,0.711354]
[1719187061883,0.157933,63318.0,63309.0,0.711354]
[1719187062087,0.16592312,63318.0,63309.0,0.710354]
[1719187062294,0.006,63313.0,63309.0,0.710354]
[1719187062462,0.003,63313.0,63309.0,0.710354]
[1719187062791,0.01299012,63312.0,63309.0,0.710354]
[1719187063128,0.005,63312.0,63309.0,0.710354]
[1719187064051,0.005,63312.0,63297.0,0.308]
[1719187064229,0.315904,63311.0,63298.0,0.315965]
[1719187064427,0.157955,63309.0,63300.0,0.157977]
[1719187064998,0.00799012,63308.0,63300.0,0.157977]
[1719187065452,0.00799012,63308.0,63299.0,0.315957]
[1719187065673,0.00799012,63308.0,63300.0,0.15256112]
[1719187065846,0.157948,63312.0,63303.0,0.157968]
[1719187066088,0.335877,63316.0,63303.0,0.157968]
[1719187066089,0.00799012,63311.0,63304.0,0.157966]
[1719187066294,0.157946,63313.0,63304.0,0.157966]
[1719187066712,0.16593812,63312.0,63304.0,0.157966]
[1719187067162,0.00799012,63312.0,63304.0,0.157966]
[1719187067571,0.157948,63312.0,63304.0,0.157966]
[1719187067774,0.00799012,63311.0,63304.0,0.157966]
[1719187067978,0.00799012,63311.0,63303.0,0.157969]
[1719187068190,0.00799012,63311.0,63304.0,0.157966]
[1719187068395,0.00799012,63311.0,63305.0,0.46849112]
[1719187068577,0.00799012,63311.0,63308.0,0.157956]
[1719187068724,0.006,63312.0,63308.0,0.157956]
[1719187068931,0.003,63311.0,63308.0,0.157956]
[1719187069553,0.009,63311.0,63308.0,0.157956]
[1719187069751,0.009,63311.0,63309.0,0.157954]
[1719187069752,0.006,63311.0,63309.0,0.157954]
[1719187070117,0.012,63311.0,63310.0,0.157952]
[1719187070293,0.012,63311.0,63310.0,0.734852]
[1719187070508,0.012,63311.0,63310.0,1.050757]
[1719187070509,0.015,63311.0,63310.0,1.050757]
[1719187070851,0.015,63311.0,63310.0,1.51922312]
[1719187071045,0.012,63311.0,63310.0,1.51922312]
[1719187071251,0.015,63311.0,63310.0,1.51922312]
[1719187071466,0.003,63311.0,63310.0,1.53922312]
[1719187071666,0.009,63311.0,63310.0,1.53922312]
[1719187072309,0.015,63311.0,63310.0,1.53922312]
[1719187072515,0.009,63311.0,63310.0,1.53922312]
[1719187072719,0.009,63311.0,63310.0,1.85512812]
[1719187072923,0.009,63311.0,63310.0,1.95512812]
[1719187073377,0.006,63311.0,63310.0,2.15512812]
[1719187073576,14.93441986,63322.0,63321.0,0.809625]
[1719187073816,14.7807673,63322.0,63321.0,1.83223612]
[1719187074019,14.78879792,63322.0,63321.0,1.83223612]
[1719187074174,14.78879792,63322.0,63321.0,1.81223612]
[1719187074473,14.78879792,63322.0,63321.0,1.83223612]
[1719187075450,14.78979792,63322.0,63321.0,1.84323612]
[1719187075652,14.79079792,63322.0,63321.0,1.84323612]
[1719187075983,14.79179792,63322.0,63321.0,2.14323612]
[1719187076194,14.79179792,63322.0,63321.0,1.94323612]
[1719187077018,14.79179792,63322.0,63321.0,1.82323612]
[1719187077215,14.79079792,63322.0,63321.0,1.81223612]
[1719187078200,14.79179792,63322.0,63321.0,1.50738612]
[1719187078636,14.78979792,63322.0,63321.0,1.19153612]
[1719187078855,14.78879792,63322.0,63321.0,1.18053612]
[1719187079072,14.78979792,63322.0,63321.0,1.19153612]
[1719187079284,14.79079792,63322.0,63321.0,0.33248612]
[1719187079564,14.79079792,63322.0,63321.0,0.64833612]
[1719187079790,14.79079792,63322.0,63321.0,0.32148612]
[1719187080022,14.79179792,63322.0,63321.0,0.022]
[1719187080458,14.79079792,63322.0,63321.0,0.011]
[1719187080662,14.79179792,63322.0,63321.0,0.022]
[1719187081615,14.78879792,63322.0,63319.0,0.157929]
[1719187081816,14.78979792,63322.0,63321.0,0.007]
[1719187082043,14.5220909,63322.0,63321.0,0.012]
[1719187082227,14.5220909,63322.0,63321.0,0.169925]
[1719187083911,14.5210909,63322.0,63321.0,0.162925]
[1719187084357,14.5220909,63322.0,63321.0,0.162925]
[1719187084959,14.5210909,63322.0,63321.0,0.162925]
[1719187085203,14.5220909,63322.0,63321.0,0.171457]
[1719187085406,14.55930505,63322.0,63321.0,0.171457]
[1719187085869,14.5220909,63322.0,63321.0,0.171457]
[1719187086080,14.55930499,63322.0,63321.0,0.171457]
[1719187086289,14.55930499,63322.0,63321.0,0.013532]
[1719187087075,14.55934305,63322.0,63321.0,0.013532]
[1719187087348,14.55934305,63322.0,63321.0,0.171457]
[1719187087554,14.55936447,63322.0,63321.0,0.171457]
[1719187088500,14.5220909,63322.0,63321.0,0.171457]
[1719187088695,14.56015503,63322.0,63321.0,0.171457]
[1719187090321,14.56014561,63322.0,63321.0,0.171457]
[1719187090894,14.56014561,63322.0,63321.0,0.487307]
[1719187091262,14.5220909,63322.0,63321.0,0.487307]
[1719187091469,14.56006196,63322.0,63321.0,0.97571812]
[1719187091682,14.56006196,63322.0,63321.0,1.22271812]
[1719187091683,14.5220909,63322.0,63321.0,1.22271812]
[1719187092773,14.5220909,63322.0,63321.0,1.53856812]
[1719187096971,14.5220909,63322.0,63321.0,2.09276812]
[1719187098425,14.5220909,63322.0,63321.0,1.40596812]
[1719187098649,14.5220909,63322.0,63321.0,0.171457]
[1719187098801,14.56095315,63322.0,63321.0,0.013532]
[1719187099003,14.71887515,63322.0,63321.0,0.013532]
[1719187099221,15.03472418,63322.0,63321.0,0.013532]
[1719187100008,15.03372418,63322.0,63321.0,0.006532]
[1719187100225,14.55895718,63322.0,63321.0,0.001532]
[1719187100433,14.55995718,63322.0,63321.0,0.001532]
[1719187101307,14.55895718,63322.0,63321.0,0.001532]
[1719187101533,14.56195718,63322.0,63321.0,0.001532]
[1719187102020,14.55995718,63322.0,63321.0,0.001532]
[1719187102242,14.56277862,63322.0,63321.0,0.001532]
[1719187102970,14.55977862,63322.0,63321.0,0.001532]
[1719187103487,14.56277862,63322.0,63321.0,0.001532]
[1719187105286,14.56314593,63322.0,63321.0,0.001532]
[1719187105910,14.56314593,63322.0,63321.0,0.159457]
[1719187106116,14.56114593,63322.0,63321.0,0.159457]
[1719187106606,14.56214593,63322.0,63321.0,0.475307]
[1719187106819,14.56214593,63322.0,63321.0,0.791157]
[1719187106820,14.55511531,63322.0,63321.0,0.791157]
[1719187107205,14.55611531,63322.0,63321.0,0.791157]
[1719187107639,14.55711531,63322.0,63321.0,0.791157]
[1719187108073,14.55611531,63322.0,63321.0,0.791157]
[1719187108497,14.55611531,63322.0,63321.0,0.97071812]
[1719187108498,14.51706028,63322.0,63321.0,0.97071812]
[1719187108707,14.55674741,63322.0,63321.0,0.95071812]
[1719187108910,14.55274741,63322.0,63321.0,0.95071812]
[1719187109342,14.55374741,63322.0,63321.0,0.95071812]
[1719187109956,14.55474741,63322.0,63321.0,0.95371812]
[1719187111642,14.55483624,63322.0,63321.0,0.011532]
[1719187112754,14.55383624,63322.0,63321.0,0.004532]
[1719187113139,14.55483624,63322.0,63321.0,0.011532]
[1719187114125,14.55183624,63322.0,63321.0,0.001532]
[1719187114547,14.55247304,63322.0,63321.0,0.005467]
[1719187114747,14.50747304,63322.0,63321.0,0.005467]
[1719187115010,14.5073861,63322.0,63321.0,0.005467]
[1719187115984,15.6317661,63322.0,63321.0,0.005467]
[1719187116199,15.6317661,63322.0,63321.0,0.010467]
[1719187116200,15.95316018,63322.0,63321.0,0.010467]
[1719187116413,16.06984851,63322.0,63321.0,0.010467]
[1719187116540,15.95316018,63322.0,63321.0,0.010467]
[1719187116737,16.06984851,63322.0,63321.0,0.002467]
[1719187117158,16.08384851,63322.0,63321.0,0.003467]
[1719187117359,15.96716018,63322.0,63321.0,0.003467]
[1719187117672,15.96716018,63322.0,63321.0,0.002467]
[1719187117673,15.97058484,63322.0,63321.0,0.002467]
[1719187117851,15.96958484,63322.0,63321.0,0.003467]
[1719187119269,15.97858484,63322.0,63321.0,0.003467]
[1719187120232,15.66273984,63322.0,63321.0,0.003467]
[1719187120845,15.66262281,63322.0,63321.0,0.003467]
[1719187121468,16.56686695,63322.0,63321.0,0.003467]
[1719187121668,18.02775881,63322.0,63321.0,0.003467]
[1719187121873,17.71191381,63322.0,63321.0,0.003467]
[1719187122004,17.43196081,63322.0,63321.0,0.003467]
[1719187122407,17.74780581,63322.0,63321.0,0.003467]
[1719187122645,17.98355993,63322.0,63321.0,0.003467]
[1719187122842,18.00355993,63322.0,63321.0,0.003467]
[1719187123475,17.90036693,63322.0,63321.0,0.003467]
[1719187123933,17.89941052,63322.0,63321.0,0.003467]
[1719187124320,17.89940864,63322.0,63321.0,0.003467]
[1719187124556,18.21525364,63322.0,63321.0,0.003467]
[1719187125129,17.89940864,63322.0,63321.0,0.003467]
[1719187125312,17.9963333,63322.0,63321.0,0.003467]
[1719187125522,17.99716816,63322.0,63321.0,0.003467]
[1719187125918,18.31301316,63322.0,63321.0,0.003467]
[1719187126979,18.31217958,63322.0,63321.0,0.003467]
[1719187129131,18.51217958,63322.0,63321.0,0.003467]
[1719187130086,18.51109959,63322.0,63321.0,0.003467]
[1719187130976,18.41417493,63322.0,63321.0,0.003467]
[1719187131660,18.94792993,63322.0,63321.0,0.003467]
[1719187132073,19.06216912,63322.0,63321.0,0.003467]
[1719187132449,19.12546512,63322.0,63321.0,0.003467]
[1719187132715,19.10146512,63322.0,63321.0,0.002467]
[1719187132913,0.473932,63300.0,63299.0,0.07764518]
[1719187133123,0.473932,63300.0,63290.0,0.55387186]
[1719187133124,0.157982,63299.0,63290.0,0.55387186]
[1719187133323,0.19826849,63298.0,63290.0,0.55387186]
[1719187133539,0.04028549,63297.0,63290.0,0.55387186]
[1719187134200,0.04028549,63297.0,63290.0,0.39586986]
[1719187134405,0.04028549,63296.0,63290.0,0.55386986]
[1719187134606,0.04028549,63295.0,63292.0,0.08158018]
[1719187134812,0.04028549,63294.0,63292.0,0.08158018]
[1719187135014,0.158983,63298.0,63292.0,0.08158018]
[1719187135205,0.04005133,63297.0,63292.0,0.08158018]
[1719187135727,0.04105133,63297.0,63292.0,0.07858018]
[1719187135946,0.001,63297.0,63292.0,0.07858018]
[1719187136155,0.04006585,63296.0,63292.0,0.07858018]
[1719187136356,0.04006585,63296.0,63293.0,0.2614]
[1719187136589,0.15798,63299.0,63293.0,0.2614]
[1719187136590,0.04006585,63295.0,63293.0,0.2614]
[1719187136798,0.04006576,63294.0,63293.0,0.2614]
[1719187137214,0.001,63297.0,63293.0,0.2614]
[1719187137215,0.04006576,63296.0,63293.0,0.2614]
[1719187137428,0.04006576,63295.0,63293.0,0.2614]
[1719187137627,0.04006576,63294.0,63293.0,0.2614]
[1719187137864,0.04006576,63298.0,63293.0,0.2614]
[1719187138069,0.04006576,63297.0,63293.0,0.2614]
[1719187138281,0.04006576,63296.0,63293.0,0.2614]
[1719187138481,0.04006576,63295.0,63293.0,0.2614]
[1719187138725,0.04006576,63294.0,63293.0,0.2614]
[1719187139045,0.04006576,63299.0,63293.0,0.2614]